lending/lending_fUSD_20240512
["ID","MTS","AMOUNT","RATE_DAILY","PERIOD"]
[326833521,1715476246210,-2099.72,0.00019452,3]
[326833522,1715476246220,-500.0,0.00019452,3]
[326833523,1715476246229,-659.14,0.00019452,3]
[326833524,1715476246238,-643.34507051,0.00019452,3]
[326833525,1715476246247,-500.0,0.00019452,3]
[326833526,1715476246257,-518.56471117,0.00019452,3]
[326833527,1715476246266,-500.0,0.00019452,3]
[326833528,1715476246276,-500.0,0.00019452,3]
[326833529,1715476246285,-500.0,0.00019452,3]
[326833530,1715476246294,-516.47499854,0.00019452,3]
[326833531,1715476246304,-588.37274709,0.00019452,3]
[326833532,1715476246314,-500.0,0.00019452,3]
[326833533,1715476246323,-500.0,0.00019452,3]
[326833534,1715476246332,-512.6383363,0.00019452,3]
[326833535,1715476246341,-500.0,0.00019452,3]
[326833536,1715476246350,-3066.84,0.00019452,3]
[326833537,1715476246359,-679.81,0.00019452,3]
[326833538,1715476246368,-492.63362154,0.00019452,3]
[326833539,1715476246377,-1318.45,0.00019452,3]
[326833540,1715476246386,-500.0,0.00019452,3]
[326833541,1715476246395,-500.0,0.00019452,3]
[326833542,1715476246404,-521.28330784,0.00019452,3]
[326833543,1715476246414,-528.53499416,0.00019452,3]
[326833544,1715476246423,-10682.4,0.00019452,3]
[326833545,1715476246433,-551.25588277,0.00019452,3]
[326833546,1715476246442,-509.01809852,0.00019452,3]
[326833547,1715476246451,-511.80482452,0.00019452,3]
[326833548,1715476246460,-1303.96,0.00019452,3]
[326833549,1715476246469,-1915.9,0.00019452,3]
[326833550,1715476246478,-587.95391803,0.00019452,3]
[326833551,1715476246487,-500.0,0.00019452,3]
[326833552,1715476246496,-602.57,0.00019452,3]
[326833553,1715476246505,-1530.11,0.00019452,3]
[326833554,1715476246515,-512.07008883,0.00019452,3]
[326833555,1715476246526,-500.0,0.00019452,3]
[326833556,1715476246535,-2326.27,0.00019452,3]
[326833557,1715476246545,-531.08759905,0.00019452,3]
[326833558,1715476246555,-671.42,0.00019452,3]
[326833559,1715476246564,-500.0,0.00019452,3]
[326833560,1715476246573,-517.46507425,0.00019452,3]
[326833561,1715476246582,-17346.24,0.00019452,3]
[326833562,1715476246592,-605.03,0.00019452,3]
[326833563,1715476246602,-500.0,0.00019452,3]
[326833564,1715476246612,-1375.21,0.00019452,3]
[326833565,1715476246622,-2157.56,0.00019452,3]
[326833566,1715476246632,-546.84,0.00019452,3]
[326833567,1715476246641,-500.0,0.00019452,3]
[326833568,1715476246651,-272.21839419,0.00019452,3]
[326833569,1715476246660,-1604.04,0.00019452,3]
[326833570,1715476246671,-500.0,0.00019452,3]
[326833571,1715476246681,-515.37935283,0.00019452,3]
[326833572,1715476246692,-500.0,0.00019452,3]
[326833573,1715476246703,-520.14518888,0.00019452,3]
[326833574,1715476246713,-2651.12,0.00019452,3]
[326833575,1715476246723,-500.0,0.00019452,3]
[326833576,1715476246733,-657.93,0.00019452,3]
[326833577,1715476246744,-728.02,0.00019452,3]
[326833578,1715476246754,-500.0,0.00019452,3]
[326833579,1715476246765,-2760.53,0.00019452,3]
[326833580,1715476246774,-500.0,0.00019452,3]
[326833581,1715476246784,-500.0,0.00019452,3]
[326833582,1715476246794,-500.0,0.00019452,3]
[326833583,1715476246804,-958.5,0.00019452,3]
[326833584,1715476246814,-427.7643319,0.00019452,3]
[326833585,1715476246823,-1163.68,0.00019452,3]
[326833586,1715476246833,-500.0,0.00019452,3]
[326833587,1715476246847,-500.0,0.00019452,3]
[326833588,1715476246856,-1097.38,0.00019452,3]
[326833589,1715476246865,-372.26703183,0.00019452,3]
[326833590,1715476246875,-500.0,0.00019452,3]
[326833591,1715476246885,-4061.37,0.00019452,3]
[326833592,1715476246895,-500.0,0.00019452,3]
[326833593,1715476246905,-512.16562245,0.00019452,3]
[326833594,1715476246914,-519.20287556,0.00019452,3]
[326833595,1715476246925,-877.95,0.00019452,3]
[326833596,1715476246934,-500.0,0.00019452,3]
[326833597,1715476246943,-500.0,0.00019452,3]
[326833598,1715476246952,-1064.72,0.00019452,3]
[326833599,1715476246961,-883.55,0.00019452,3]
[326833600,1715476246971,-528.49040787,0.00019452,3]
[326833601,1715476246981,-500.1,0.00019452,3]
[326833602,1715476246990,-1202.0,0.00019452,3]
[326833603,1715476246999,-935.47,0.00019452,3]
[326833604,1715476247009,-523.12645509,0.00019452,3]
[326833605,1715476247019,-500.0,0.00019452,3]
[326833606,1715476247028,-6827.16,0.00019452,3]
[326833607,1715476247038,-500.0,0.00019452,3]
[326833608,1715476247047,-1053.48,0.00019452,3]
[326833609,1715476247056,-202.03512671,0.00019452,3]
[326833610,1715476247065,-1504.09,0.00019452,3]
[326833611,1715476247075,-1435.99,0.00019452,3]
[326833612,1715476247085,-500.0,0.00019452,3]
[326833613,1715476247094,-924.33,0.00019452,3]
[326833614,1715476247103,-563.81533351,0.00019452,3]
[326833615,1715476247112,-500.0,0.00019452,3]
[326833616,1715476247122,-500.0,0.00019452,3]
[326833617,1715476247132,-554.61,0.00019452,2]
[326833618,1715476247141,-3444.29,0.00019452,3]
[326833619,1715476247150,-520.11058421,0.00019452,3]
[326833620,1715476247160,-667.98,0.00019452,3]
[326833621,1715476247169,-500.0,0.00019452,3]
[326833622,1715476247179,-500.0,0.00019452,3]
[326833623,1715476247189,-973.6,0.00019452,3]
[326833624,1715476247198,-2997.21,0.00019452,3]
[326833625,1715476247207,-295.89775596,0.00019452,3]
[326833626,1715476247216,-45585.63,0.00019452,3]
[326833627,1715476247225,-2012.19,0.00019452,3]
[326833628,1715476247234,-500.0,0.00019452,3]
[326833629,1715476247243,-501.65,0.00019452,3]
[326833630,1715476247252,-2463.11,0.00019452,3]
[326833631,1715476247261,-17671.13,0.00019452,3]
[326833632,1715476247270,-661.2,0.00019452,3]
[326833633,1715476247279,-2669.67,0.00019452,3]
[326833634,1715476247288,-643.74,0.00019452,3]
[326833635,1715476247298,-1959.68,0.00019452,3]
[326833636,1715476247307,-1593.95,0.00019452,3]
[326833637,1715476247317,-716.43,0.00019452,3]
[326833638,1715476247325,-754.34,0.00019452,3]
[326833639,1715476247335,-500.0,0.00019452,3]
[326833640,1715476247344,-207.90685221,0.00019452,3]
[326833641,1715476247354,-729.0,0.00019452,3]
[326833642,1715476247363,-500.0,0.00019452,3]
[326833643,1715476247372,-501.93970188,0.00019452,3]
[326833644,1715476247381,-4174.69,0.00019452,3]
[326833645,1715476247390,-584.92,0.00019452,3]
[326833646,1715476247399,-1453.63,0.00019452,3]
[326833647,1715476247407,-512.82873352,0.00019452,3]
[326833648,1715476247416,-1030.25,0.00019452,3]
[326833649,1715476247426,-500.0,0.00019452,3]
[326833650,1715476247435,-759.2,0.00019452,3]
[326833651,1715476247443,-1803.76,0.00019452,3]
[326833652,1715476247453,-7800.93,0.00019452,3]
[326833653,1715476247462,-500.0,0.00019452,3]
[326833654,1715476247471,-522.60270183,0.00019452,3]
[326833655,1715476247482,-3076.38,0.00019452,3]
[326833656,1715476247492,-500.0,0.00019452,3]
[326833657,1715476247501,-500.0,0.00019452,3]
[326833658,1715476247510,-500.0,0.00019452,3]
[326833659,1715476247519,-655.72,0.00019452,3]
[326833660,1715476247529,-2470.86,0.00019452,3]
[326833661,1715476247538,-500.0,0.00019452,3]
[326833662,1715476247547,-582.64,0.00019452,3]
[326833663,1715476247556,-500.0,0.00019452,3]
[326833664,1715476247566,-500.0,0.00019452,3]
[326833665,1715476247575,-500.0,0.00019452,3]
[326833666,1715476247585,-500.0,0.00019452,3]
[326833667,1715476247595,-488.59903232,0.00019452,3]
[326833668,1715476247606,-856.74,0.00019452,3]
[326833669,1715476247616,-628.85,0.00019452,3]
[326833670,1715476247626,-500.0,0.00019452,3]
[326833671,1715476247637,-500.0,0.00019452,3]
[326833672,1715476247646,-6891.07,0.00019452,3]
[326833673,1715476247655,-6300.86165295,0.00019452,3]
[326833674,1715476247694,-477.94834705,0.00019452,3]
[326833675,1715476247703,-872.05165295,0.00019452,3]
[326833676,1715476248059,-78.44746141,0.00019452,3]
[326833677,1715476248084,-1695.27088564,0.00019452,3]
[326833678,1715476248093,-537.98,0.00019452,3]
[326833679,1715476248101,-3371.52,0.00019452,3]
[326833680,1715476248110,-1458.85,0.00019452,3]
[326833681,1715476248119,-578.08,0.00019452,3]
[326833682,1715476248127,-500.0,0.00019452,3]
[326833683,1715476248136,-500.0,0.00019452,3]
[326833684,1715476248145,-268.6669834,0.00019452,3]
[326833685,1715476248153,-3629.43823915,0.00019452,3]
[326833686,1715476248165,-136.61176085,0.00019452,3]
[326833687,1715476248174,-500.0,0.00019452,3]
[326833688,1715476248183,-1716.67,0.00019452,3]
[326833689,1715476248192,-501.39,0.00019452,3]
[326833690,1715476248202,-960.56,0.00019452,3]
[326833691,1715476248210,-500.0,0.00019452,3]
[326833692,1715476248220,-500.0,0.00019452,3]
[326833693,1715476248229,-1184.8,0.00019452,3]
[326833694,1715476248238,-2942.44,0.00019452,3]
[326833695,1715476248247,-512.08,0.00019452,3]
[326833696,1715476248257,-883.5,0.00019452,3]
[326833697,1715476248266,-6878.4,0.00019452,3]
[326833698,1715476248275,-839.91,0.00019452,3]
[326833699,1715476248284,-599.17,0.00019452,3]
[326833700,1715476248293,-3344.15,0.00019452,3]
[326833701,1715476248301,-500.0,0.00019452,3]
[326833702,1715476248312,-650.72,0.00019452,3]
[326833703,1715476248321,-5661.75,0.00019452,3]
[326833704,1715476248330,-991.63980983,0.00019452,3]
[326833705,1715476249328,-4170.03465609,0.00013,2]
[326833706,1715476249375,-455.07799912,0.00013,2]
[326833707,1715476249404,-3896.92962932,0.00013,2]
[326833708,1715476249720,-1925.03232338,0.00013,2]
[326833709,1715476249732,-21786.0,0.00013,2]
[326833710,1715476249744,-1893.7,0.00013,2]
[326833711,1715476249808,-284.64976911,0.00013,2]
[326833712,1715476249820,-323.224,0.00013,2]
[326833713,1715476250607,-392.30596212,0.00013,2]
[326833714,1715476250656,-2008.39185758,0.00013,2]
[326833715,1715476250668,-5649.100764,0.00013,2]
[326833716,1715476250692,-7223.96942767,0.00013,2]
[326833717,1715476251926,-14.8438752,0.00012999,2]
[326833718,1715476252028,-987.14228373,0.00012999,2]
[326833719,1715476252048,-1323.84225849,0.00012999,2]
[326833720,1715476252058,-5445.92069531,0.00013,2]
[326833721,1715476252069,-58327.84393,0.00013,2]
[326833724,1715477156111,900.0,0.00025,120]
[326833725,1715477431833,-4273.84532325,0.00012678,2]
[326833728,1715477431842,-788.94409382,0.00012678,2]
[326833729,1715477431851,-155.0,0.00012678,2]
[326833730,1715477431860,-1052.67827277,0.00012679,2]
[326833732,1715477431870,-782.94178795,0.0001268,2]
[326833734,1715477431880,-87.09763535,0.0001268,2]
[326833735,1715477431896,-318.48258184,0.0001268,2]
[326833736,1715477431906,-208.37025928,0.0001268,2]
[326833737,1715477431915,-150.0,0.0001268,2]
[326833738,1715477431925,-1244.07608954,0.00012681,2]
[326833739,1715477431935,-11455.3925027,0.00012681,2]
[326833740,1715477431944,-3573.7762,0.000127,2]
[326833741,1715477431953,-233.6301,0.000128,2]
[326833742,1715477431964,-44022.81860724,0.000128,2]
[326833743,1715477431976,-19307.18819927,0.000128,2]
[326833744,1715477431986,-1372.00002,0.000128,2]
[326833745,1715477431999,-385.01912969,0.000128,2]
[326833746,1715477432042,-760.55939495,0.000128,2]
[326833747,1715477432053,-7694.53004885,0.000128,2]
[326833748,1715477432062,-521.26427135,0.00012998,2]
[326833749,1715477432072,-190.0,0.00013948,2]
[326833750,1715477432081,-188.77835514,0.00013962,2]
[326833751,1715477432090,-178.29,0.00013963,2]
[326833752,1715477432099,-499.99,0.00014711,2]
[326833753,1715477432108,-6203.0,0.00015,2]
[326833754,1715477432118,-618.54406354,0.00015,2]
[326833755,1715477432128,-167.823,0.00015722,2]
[326833756,1715477432138,-282.26475923,0.00015999,2]
[326833757,1715477432147,-150.0,0.00016,2]
[326833758,1715477432156,-500.0,0.00016196,2]
[326833759,1715477432165,-23890.0,0.00016204,2]
[326833760,1715477432174,-194.3,0.00016243,2]
[326833761,1715477432183,-250.0,0.00016295,2]
[326833762,1715477432192,-200.0,0.00016295,2]
[326833763,1715477432201,-493.33,0.00016321,2]
[326833764,1715477432211,-1901.25,0.00016333,2]
[326833765,1715477432220,-3199.98,0.0001634,2]
[326833766,1715477432229,-1500.0,0.00016372,2]
[326833767,1715477432238,-500.0,0.0001642,2]
[326833768,1715477432247,-250.0,0.00016497,2]
[326833769,1715477432256,-164.55,0.00016607,2]
[326833770,1715477432265,-1226.417456,0.00016661,2]
[326833771,1715477432274,-1000.0,0.00016662,2]
[326833772,1715477432283,-153.5496588,0.00017257,2]
[326833773,1715477432292,-152.10748697,0.00017569,2]
[326833774,1715477432301,-637.0,0.00018,2]
[326833775,1715477432310,-5000.0,0.00018,2]
[326833776,1715477432319,-671.72,0.00018207,3]
[326833777,1715477432328,-1293.92513545,0.00018217,2]
[326833778,1715477432337,-1201.43917214,0.00018366,2]
[326833779,1715477432346,-182.31849368,0.00018378,2]
[326833780,1715477432356,-162.15491778,0.00018455,2]
[326833781,1715477432365,-152.10748697,0.00018465,2]
[326833782,1715477432376,-169.27791009,0.00018466,2]
[326833792,1715477432638,-954.47236404,0.00018478,2]
[326833793,1715477432647,-1201.4391721,0.00018536,2]
[326833794,1715477432656,-1201.4391721,0.00018707,2]
[326833795,1715477432666,-1000.0,0.00018744,2]
[326833796,1715477432675,-423.2297,0.000188,2]
[326833797,1715477432684,-152.10748697,0.00018831,2]
[326833798,1715477432693,-1201.4391721,0.00018877,2]
[326833799,1715477432702,-2380.9079,0.000189,2]
[326833800,1715477432711,-2465.3731,0.000189,2]
[326833801,1715477432720,-4449.4355,0.000189,2]
[326833802,1715477432729,-1955.0239,0.000189,2]
[326833803,1715477432738,-2473.3868,0.000189,2]
[326833804,1715477432747,-163.8757,0.000189,2]
[326833805,1715477432757,-3336.1821,0.000189,2]
[326833806,1715477432766,-152.10748697,0.00018945,2]
[326833807,1715477432775,-18314.06199669,0.00018984,2]
[326833808,1715477432785,-23405.93879461,0.00019,5]
[326833809,1715477432794,-1201.4391721,0.00019048,2]
[326833810,1715477432803,-169.20148366,0.00019078,2]
[326833811,1715477432812,-158.92639082,0.00019078,2]
[326833812,1715477432821,-152.88712884,0.00019078,2]
[326833813,1715477432830,-1779.24092115,0.00019078,2]
[326833814,1715477432840,-7500.0,0.00019078,2]
[326833815,1715477432849,-2098.72519057,0.00019176,2]
[326833816,1715477432858,-317.215551,0.00019176,2]
[326833817,1715477432868,-1622.59234929,0.00019176,2]
[326833818,1715477432877,-155.0,0.00019176,2]
[326833819,1715477432886,-2312.85469598,0.00019176,2]
[326833820,1715477432895,-315.86804862,0.00019176,2]
[326833821,1715477432904,-1872.62188095,0.00019176,2]
[326833822,1715477432913,-186316.48012449,0.00019176,2]
[326833823,1715477433514,-463.101573,0.00019176,2]
[326833824,1715477433525,-625.3983,0.00019176,2]
[326833825,1715477433536,-52366.10599794,0.00019176,2]
[326833826,1715477433547,-60092.82223061,0.00019176,2]
[326833827,1715477433558,-658.25,0.00019176,2]
[326833828,1715477433569,-199305.17721784,0.00019176,2]
[326833829,1715477433580,-460.43123519,0.00019176,2]
[326833830,1715477433591,-614.7279758,0.00019176,2]
[326833831,1715477433602,-428.101543,0.00019176,2]
[326833832,1715477433660,-29939.88252474,0.00019176,2]
[326833833,1715477433672,-2492.08908691,0.00019176,2]
[326833834,1715477433683,-808.63693813,0.00019176,2]
[326833835,1715477433694,-404.50318885,0.00019176,2]
[326833836,1715477433705,-4321.14263448,0.00019176,2]
[326833838,1715477438028,-155.0,0.00012677,2]
[326833839,1715477438037,-188.79260884,0.00013,2]
[326833840,1715477438047,-183.70205282,0.00019168,2]
[326833841,1715477438056,-1472.50533834,0.00019176,2]
[326833842,1715477438069,-25239.82464,0.00019176,2]
[326833843,1715477438081,-40188.70718728,0.00019176,2]
[326833844,1715477438318,-6454.25955488,0.00019176,2]
[326833845,1715477438329,-30188.81190585,0.00019176,2]
[326833846,1715477438341,-1015.1703867,0.00019176,2]
[326833847,1715477438352,-2084.0327375,0.00019176,2]
[326833848,1715477438363,-2007.98320904,0.00019176,2]
[326833849,1715477438374,-1397.66955151,0.00019176,2]
[326833850,1715477438384,-1189.03477744,0.00019176,2]
[326833860,1715477440735,-2640.10736042,0.00019176,2]
[326833861,1715477440748,-706.70000108,0.00019176,2]
[326833862,1715477440760,-286.313,0.00019176,2]
[326833863,1715477440772,-15228.66257192,0.00019176,2]
[326833864,1715477440900,-443.43736833,0.00019176,2]
[326833866,1715477441873,-738.98788896,0.00019176,2]
[326833867,1715477441897,-7706.4005003,0.00019176,2]
[326833868,1715477441912,-1538.7074705,0.00019176,2]
[326833880,1715477442971,-895.04956759,0.00019176,2]
[326833881,1715477442982,-6222.45256622,0.00019176,2]
[326833882,1715477442993,-3779.61037205,0.00019176,2]
[326833883,1715477443006,-304.16330687,0.00019176,2]
[326833884,1715477443131,-553.50284338,0.00019175,2]
[326833885,1715477443143,-1245.4,0.00019175,2]
[326833886,1715477443299,-3201.09715662,0.00019175,2]
[326833887,1715477443308,-225237.48515718,0.00019176,2]
[326833888,1715477443320,-3318.71748638,0.00019176,2]
[326833889,1715477443332,-774.18735502,0.00019176,2]
[326833894,1715477445846,-782.8906089,0.00019175,2]
[326833896,1715477445855,-403.96356729,0.00019175,2]
[326833898,1715477445865,-158.28392442,0.00019175,2]
[326833900,1715477445874,-1246.19523038,0.00019175,2]
[326833902,1715477445886,-1226.52130354,0.00019175,2]
[326833903,1715477445895,-814.35106947,0.00019176,2]
[326833904,1715477446045,-65883.86042338,0.00019176,2]
[326833905,1715477446239,-15045.00000015,0.00019176,2]
[326833906,1715477446250,-12598.60000001,0.00019176,2]
[326833907,1715477446262,-392.67559406,0.00019176,2]
[326833910,1715477636036,150.0,9e-05,2]
[326833911,1715477636059,150.0,9e-05,2]
[326833912,1715477636084,150.0,9e-05,2]
[326833913,1715477636107,150.0,9e-05,2]
[326833914,1715477636129,150.0,9e-05,2]
[326833915,1715477636152,150.0,9e-05,2]
[326833916,1715477636175,150.0,9e-05,2]
[326833917,1715477636202,1466.5532524,9e-05,2]
[326833918,1715477636224,6587.73197742,9e-05,2]
[326833921,1715477979353,2670.77658814,9e-05,2]
[326833922,1715477979379,2958.50856556,9e-05,2]
[326833923,1715477979403,2958.50856556,9e-05,2]
[326833924,1715477986570,-161.88768119,8.999e-05,2]
[326833925,1715477986600,-59700.81733661,9e-05,2]
[326833941,1715478488592,-521.6197016,8.946e-05,2]
[326833942,1715478488615,-326.47360097,8.947e-05,2]
[326833943,1715478488636,-200.77628892,8.947e-05,2]
[326833944,1715478488661,-177.76407974,8.948e-05,2]
[326833945,1715478488682,-161.88768119,8.949e-05,2]
[326833946,1715478488702,-262.86247652,8.949e-05,2]
[326833947,1715478488722,-237.2941111,8.95e-05,2]
[326833948,1715478488743,-306.03142817,8.95e-05,2]
[326833949,1715478488763,-194.8533955,8.951e-05,2]
[326833950,1715478488786,-4273.84532325,8.952e-05,2]
[326833951,1715478488808,-656.27371596,8.955e-05,2]
[326833952,1715478488833,-150.0,8.959e-05,2]
[326833953,1715478488857,-161.88768119,9e-05,2]
[326833961,1715478632414,-161.88768119,0.00011998,2]
[326833962,1715478632424,-2054.15834034,0.00011999,2]
[326833963,1715478632437,-2291.30000015,0.00011999,2]
[326833964,1715478632447,-962.47257914,0.00011999,2]
[326833965,1715478632459,-251.0206424,0.00011999,2]
[326833966,1715478632468,-113.16749612,0.00012,2]
[326833967,1715478632480,-1087.10900317,0.00012,2]
[326833968,1715478632491,-1064.01999944,0.00012,2]
[326833969,1715478632502,-564.00393569,0.00012,2]
[326833970,1715478632514,-3749.66154191,0.00012,2]
[326833971,1715478632525,-4878.71178692,0.00012,2]
[326833972,1715478632535,-250.0,0.0001227,2]
[326833973,1715478632544,-151.52,0.0001227,2]
[326833974,1715478632554,-287.46227202,0.000125,2]
[326833975,1715478632563,-2083.65584227,0.000125,2]
[326833976,1715478632572,-150.0,0.00012898,2]
[326833977,1715478632581,-741.55008879,0.000129,2]
[326833978,1715478632593,-1758.44991121,0.000129,2]
[326833979,1715478632603,-168.84247966,0.000129,2]
[326833980,1715478632612,-159.44406441,0.000129,2]
[326833981,1715478632622,-48.61956331,0.000129,2]
[326833982,1715478632636,-4124.89055274,0.000129,2]
[326833983,1715478632647,-3571.05552313,0.000129,2]
[326833984,1715478632659,-1214.93835696,0.000129,2]
[326833985,1715478632670,-1474.09241909,0.000129,2]
[326833989,1715478632682,-3002.23633276,0.000129,2]
[326833992,1715478632697,-9313.21597719,0.000129,2]
[326834008,1715478632837,-664.03948097,0.000129,2]
[326834030,1715478638276,-3756.8580788,0.000129,2]
[326834032,1715478638377,-30188.81190585,0.000129,2]
[326834033,1715478638578,-358.33485164,0.000129,2]
[326834034,1715478638589,-573.2828905,0.000129,2]
[326834035,1715478638713,-22856.96576706,0.000129,2]
[326834036,1715478638723,-687.0861,0.000129,2]
[326834037,1715478638733,-626.3802835,0.000129,2]
[326834038,1715478638741,-321.14632658,0.000129,2]
[326834039,1715478638750,-900.33535721,0.000129,2]
[326834040,1715478638759,-257.95032505,0.000129,2]
[326834041,1715478638768,-160.30658761,0.000129,2]
[326834042,1715478638777,-499.99,0.000129,2]
[326834043,1715478638785,-13581.89079265,0.000129,2]
[326834044,1715478638795,-208.40272462,0.00012985,2]
[326834045,1715478638803,-1379.74444204,0.00012987,2]
[326834046,1715478638812,-171.11349026,0.0001299,2]
[326834047,1715478638821,-171.11349026,0.0001299,2]
[326834048,1715478638830,-155.09,0.0001299,2]
[326834049,1715478638839,-155.09,0.0001299,2]
[326834050,1715478638849,-155.09,0.0001299,2]
[326834051,1715478638858,-155.09,0.0001299,2]
[326834053,1715478638867,-155.09,0.0001299,2]
[326834054,1715478638876,-155.0,0.00012994,2]
[326834055,1715478638885,-155.0,0.00012997,2]
[326834056,1715478638895,-1243.56007584,0.00012998,2]
[326834057,1715478638904,-321.45128301,0.00012998,2]
[326834058,1715478638913,-262.34973659,0.00012998,2]
[326834059,1715478638923,-237.27588879,0.00012998,2]
[326834060,1715478638932,-177.78465607,0.00012998,2]
[326834061,1715478638942,-522.38265852,0.00012998,2]
[326834062,1715478638950,-304.41755458,0.00012998,2]
[326834063,1715478638962,-325.24371159,0.00012998,2]
[326834064,1715478638971,-174.82609796,0.00012998,2]
[326834065,1715478638980,-4276.98677051,0.00012998,2]
[326834066,1715478638989,-155.12941808,0.00012998,2]
[326834067,1715478638998,-1887.87880127,0.00012999,2]
[326834068,1715478639008,-155.0,0.00012999,2]
[326834069,1715478639017,-102062.94925057,0.00013,2]
[326834070,1715478639026,-1155827.3960439,0.00013,2]
[326834071,1715478639043,-7944.81792,0.00013,2]
[326834074,1715478641840,-652.20074213,0.00013,2]
[326834075,1715478641855,-892.74840915,0.00013,2]
[326834076,1715478641869,-728.18634855,0.00013,2]
[326834077,1715478641887,-505.53116172,0.00013,2]
[326834078,1715478641901,-7225.95188826,0.00013,2]
[326834079,1715478642533,-680.51216495,0.00013,2]
[326834080,1715478642545,-631.33700009,0.00013,2]
[326834081,1715478642557,-345.59999998,0.00013,2]
[326834082,1715478642727,-495.28604812,0.00013,2]
[326834085,1715478643266,-1163.68068873,0.00013,2]
[326834086,1715478643347,-2127.40862822,0.00013,2]
[326834087,1715478643376,-688.15196471,0.00013,2]
[326834088,1715478643406,-959.199,0.00013,2]
[326834089,1715478643523,-389.72999925,0.00013,2]
[326834090,1715478643658,-19973.32112113,0.00013,2]
[326834091,1715478643669,-617.42097586,0.00013,2]
[326834092,1715478643680,-339.25813426,0.00013,2]
[326834094,1715478644223,-326.95217199,0.00013,2]
[326834095,1715478644265,-148895.81203197,0.00013,2]
[326834096,1715478644276,-834270.32044634,0.00013,2]
[326834097,1715478644288,-7786.92172431,0.00013,2]
[326834098,1715478644299,-631954.42594333,0.00013,2]
[326834099,1715478644311,-582.270009,0.00013,2]
[326834100,1715478644403,-2882.0,0.00013,2]
[326834101,1715478644414,-693.33226647,0.00013,2]
[326834102,1715478644424,-732.3,0.00013,2]
[326834103,1715478644435,-4540.0,0.00013,2]
[326834104,1715478644447,-1066.32182804,0.00013,2]
[326834105,1715478644458,-489.23716,0.00013,2]
[326834106,1715478644469,-736.37395775,0.00013,2]
[326834107,1715478646142,-1956.54093988,0.000129,2]
[326834109,1715478646152,-4838.6325218,0.00012999,2]
[326834111,1715478646161,-9435.85414832,0.00013,2]
[326834113,1715478646173,-662.90142364,0.00013,2]
[326834116,1715478646184,-321.89999999,0.00013,2]
[326834121,1715478646403,-309.08857619,0.00013,2]
[326834122,1715478646415,-693.38000075,0.00013,2]
[326834123,1715478646427,-29485.04690252,0.00013,2]
[326834124,1715478646438,-1257.26,0.00013,2]
[326834125,1715478646449,-2699.80418807,0.00013,2]
[326834126,1715478646459,-8280.005795,0.00013,2]
[326834127,1715478646471,-359.00939672,0.00013,2]
[326834128,1715478646483,-1515.48982,0.00013,2]
[326834129,1715478646494,-519.67328745,0.00013,2]
[326834130,1715478646660,-6257.56595031,0.00012999,2]
[326834131,1715478646672,-736.0,0.00012999,2]
[326834132,1715478976504,-150.0,0.00012894,2]
[326834133,1715479294826,-150.0,0.00012869,2]
[326834134,1715479358214,-150.0,0.00012817,2]
[326834135,1715479607810,-150.0,0.00011696,2]
[326834140,1715479832546,-485.88175586,0.00011691,2]
[326834141,1715479832558,-386.03957211,0.00011691,2]
[326834142,1715479832570,-2450.0,0.00011691,2]
[326834143,1715479832581,-942.89298596,0.00011691,2]
[326834210,1715479838770,-160.06712614,0.00011691,2]
[326834212,1715479838779,-1941.95472364,0.00011692,2]
[326834214,1715479838790,-2651.28360222,0.00011692,2]
[326834215,1715479838799,-27537.52830363,0.00011692,2]
[326834216,1715479838948,-3498.48600278,0.00011692,2]
[326834217,1715479838959,-4299.69744479,0.00011692,2]
[326834218,1715479838969,-409.41809319,0.00011696,2]
[326834219,1715479838978,-757.34603118,0.00011698,2]
[326834220,1715479838988,-500.0,0.00012505,2]